bitfinex/quotes_SOLUSD_20260120
["timestamp","ask_amount","ask_price","bid_price","bid_amount"]
[1768902502815,2.11939191,128.82,128.78,7.76478423]
[1768902503222,2.11939191,128.82,128.78,9.76247926]
[1768902504343,2.11939191,128.82,128.79,1.99769503]
[1768902504521,0.2,128.82,128.79,1.99769503]
[1768902504834,0.2,128.86,128.82,1.99769503]
[1768902505063,5.82780961,128.86,128.82,1.99769503]
[1768902505236,5.62780961,128.85,128.8,17.0]
[1768902505915,5.62780961,128.85,128.8,24.76346258]
[1768902506227,3.7063808,128.85,128.8,24.76346258]
[1768902506533,5.62780961,128.85,128.8,24.76346258]
[1768902507237,5.62780961,128.85,128.81,1.99769503]
[1768902507437,1.92142881,128.85,128.81,1.99769503]
[1768902507818,1.92142881,128.85,128.82,1.99769503]
[1768902508040,2.12142881,128.86,128.82,1.99769503]
[1768902509123,5.82780961,128.86,128.82,1.99769503]
[1768902510050,1.92142881,128.85,128.82,7.76270118]
[1768902510345,1.92142881,128.85,128.82,9.76039621]
[1768902510846,2.12142881,128.86,128.82,9.76039621]
[1768902511838,5.82780961,128.86,128.82,9.76039621]
[1768902512582,1.92142881,128.84,128.8,18.99769503]
[1768902512747,1.92142881,128.84,128.8,26.76137059]
[1768902512949,1.92142881,128.84,128.81,7.76331923]
[1768902513450,1.92142881,128.84,128.8,26.76147253]
[1768902514044,1.92142881,128.84,128.78,23.11841223]
[1768902514045,1.92142881,128.82,128.78,26.76256368]
[1768902514733,1.92142881,128.81,128.78,18.99769503]
[1768902514920,1.92142881,128.81,128.78,26.76266929]
[1768902515126,1.92142881,128.82,128.78,26.76266929]
[1768902515845,5.62780961,128.82,128.78,26.76266929]
[1768902516041,1.92142881,128.81,128.78,26.76266929]
[1768902516759,1.92142881,128.81,128.78,9.76266929]
[1768902530138,2.10758823,128.82,128.79,2.13703339]
[1768902530437,2.10758823,128.85,128.81,2.13703339]
[1768902531361,2.10758823,128.85,128.8,30.60710821]
[1768902532070,5.81396903,128.85,128.8,26.90072741]
[1768902532251,2.10758823,128.84,128.8,26.90072741]
[1768902532767,2.10758823,128.84,128.81,2.13703339]
[1768902533463,2.02230105,128.85,128.82,2.06572491]
[1768902533669,2.22230105,128.86,128.82,5.77210571]
[1768902533870,2.22230105,128.86,128.83,2.06572491]
[1768902536182,0.2,128.86,128.83,2.06572491]
[1768902536364,0.2,128.86,128.83,30.53416426]
[1768902536676,0.2,128.86,128.83,26.82778346]
[1768902537284,0.2,128.86,128.85,2.06572491]
[1768902537458,3.9063808,128.89,128.86,2.06572491]
[1768902537459,0.2,128.89,128.86,2.06572491]
[1768902537659,0.2,128.89,128.86,22.77210571]
[1768902538676,0.2,128.89,128.87,3.7063808]
[1768902540186,0.2,128.9,128.88,2.06572491]
[1768902540383,0.2,128.9,128.88,5.77210571]
[1768902540570,0.2,128.91,128.89,3.7063808]
[1768902540754,67.12819841,128.92,128.9,5.59769585]
[1768902540959,2.02230105,128.94,128.91,5.39769585]
[1768902541172,2.02230105,128.94,128.92,3.7063808]
[1768902541472,2.02230105,128.94,128.91,5.39769585]
[1768902541859,2.02230105,128.94,128.91,13.15494912]
[1768902542264,2.02230105,128.94,128.91,3.7063808]
[1768902542881,2.02230105,128.94,128.91,11.46368917]
[1768902543571,0.2,128.95,128.91,13.18388379]
[1768902543875,2.22230105,128.95,128.92,3.7063808]
[1768902544171,2.22230105,128.95,128.91,13.18388379]
[1768902544881,2.22230105,128.95,128.91,9.47750299]
[1768902545067,2.22230105,128.95,128.91,13.18388379]
[1768902545269,2.22230105,128.95,128.92,13.20804663]
[1768902545469,0.2,128.95,128.94,3.7063808]
[1768902545776,0.2,128.95,128.93,5.45132228]
[1768902545967,2.22230105,128.95,128.92,28.46310515]
[1768902546167,2.22230105,128.95,128.92,24.75672435]
[1768902546490,2.22230105,128.95,128.92,17.0]
[1768902546652,2.02230105,128.94,128.9,17.0]
[1768902546856,2.02230105,128.94,128.9,24.75793166]
[1768902547157,2.02230105,128.94,128.91,7.75731117]
[1768902548076,2.02230105,128.94,128.9,30.22263585]
[1768902549181,3.9063808,128.95,128.91,5.491708]
[1768902549182,2.22230105,128.95,128.91,5.491708]
[1768902549478,7.75341157,128.98,128.95,9.35324262]
[1768902549479,2.02230105,128.98,128.95,9.35324262]
[1768902549679,2.02230105,128.98,128.96,3.7063808]
[1768902549886,2.02230105,128.98,128.95,13.05962342]
[1768902550119,2.02230105,128.98,128.95,11.46114237]
[1768902550376,2.02230105,128.98,128.95,7.75476157]
[1768902550558,2.02230105,128.98,128.94,30.06017822]
[1768902551783,2.02230105,128.98,128.94,26.35379742]
[1768902552283,2.02230105,128.98,128.94,24.75531637]
[1768902553362,2.02230105,128.98,128.94,30.09874018]
[1768902553563,2.02230105,128.98,128.95,3.7063808]
[1768902554377,2.02230105,128.98,128.94,30.09874018]
[1768902555779,4.14729789,129.07,128.96,2.06572491]
[1768902556098,3.7063808,129.01,128.96,5.77210571]
[1768902557073,0.2,129.03,128.97,2.06572491]
[1768902557287,3.9063808,129.03,128.98,5.77210571]
[1768902557783,2.02230105,129.02,128.98,2.06572491]
[1768902558764,2.02230105,129.02,128.98,5.77210571]
[1768902558960,2.02230105,129.02,128.98,2.06572491]
[1768902559491,2.02230105,129.02,128.98,5.76091846]
[1768902561297,2.02230105,129.01,128.98,2.06572491]
[1768902561484,2.02230105,129.01,128.98,5.76091846]
[1768902562581,2.02230105,129.01,128.98,2.06572491]
[1768902567482,2.3493355,129.0,128.96,2.15298855]
[1768902567787,2.3493355,128.99,128.96,2.15298855]
[1768902567987,2.3493355,128.99,128.95,13.60282737]
[1768902568576,2.3493355,128.99,128.95,2.15298855]
[1768902568881,3.69519355,128.99,128.95,2.15298855]
[1768902569085,2.3493355,128.98,128.95,9.90792711]
[1768902569284,2.3493355,128.98,128.95,2.15298855]
[1768902569787,2.3493355,128.99,128.95,13.60305038]
[1768902570181,2.3493355,128.99,128.96,2.15298855]
[1768902572309,2.3493355,128.99,128.95,9.90785683]
[1768902573487,6.04452905,128.99,128.95,9.90785683]
[1768902573904,2.3493355,128.99,128.95,9.90785683]
[1768902574814,2.3493355,128.99,128.96,2.15298855]
[1768902575718,2.3493355,128.98,128.95,7.75486828]
[1768902576084,2.3493355,128.98,128.94,2.15298855]
[1768902576291,2.3493355,128.97,128.94,9.90846707]
[1768902576502,2.3493355,128.97,128.93,9.90890759]
[1768902576926,2.3493355,128.97,128.94,9.90846968]
[1768902578914,2.3493355,128.98,128.95,2.15298855]
[1768902579897,2.3493355,129.01,128.95,2.15298855]
[1768902580114,2.3493355,129.01,128.98,2.15298855]
[1768902580306,2.3493355,129.01,128.98,5.8481821]
[1768902580511,2.3493355,129.02,128.99,2.15298855]
[1768902581017,2.5493355,129.03,129.0,2.15298855]
[1768902581424,2.3493355,129.02,128.99,2.15298855]
[1768902581927,2.3493355,129.01,128.98,2.15298855]
[1768902582215,2.3493355,129.0,128.97,19.13298855]
[1768902582416,2.3493355,128.99,128.97,16.98]
[1768902583004,6.04452905,129.0,128.97,16.98]
[1768902583297,6.04452905,129.0,128.96,9.90732575]
[1768902584701,2.31904294,128.98,128.92,2.28513211]
[1768902584919,2.31904294,128.92,128.88,2.28513211]
[1768902585110,6.01423649,128.91,128.86,2.28513211]
[1768902585420,3.69519355,128.9,128.86,10.04511106]
[1768902585799,6.01423649,128.93,128.88,2.28513211]
[1768902586108,3.69519355,128.92,128.88,2.28513211]
[1768902586297,6.01423649,128.92,128.88,2.28513211]
[1768902586498,6.01423649,128.92,128.88,10.04395641]
[1768902587310,6.01423649,128.92,128.88,2.28513211]
[1768902588820,3.69519355,128.91,128.88,2.28513211]
[1768902589007,2.31904294,128.92,128.87,2.28513211]
[1768902589206,2.31904294,128.92,128.88,2.28513211]
[1768902589435,6.01423649,128.92,128.88,2.28513211]
[1768902589717,2.31904294,128.91,128.88,2.28513211]
[1768902590722,6.01423649,128.91,128.88,2.28513211]
[1768902591018,6.01423649,128.9,128.86,10.04523646]
[1768902593103,2.32684716,128.95,128.88,2.38656491]
[1768902593307,6.02204071,128.94,128.89,6.08175846]
[1768902593505,6.02204071,128.94,128.9,2.38656491]
[1768902594025,3.69519355,128.94,128.9,2.38656491]
[1768902594219,2.32684716,128.93,128.9,2.38656491]
[1768902597125,6.02204071,128.93,128.9,2.38656491]
[1768902597912,6.02204071,128.93,128.89,2.38656491]
[1768902598109,6.02204071,128.91,128.88,19.36656491]
[1768902598811,6.02204071,128.91,128.88,16.98]
[1768902599028,6.02204071,128.91,128.88,19.36656491]
[1768902599606,6.02204071,128.91,128.88,27.12566098]
[1768902600252,3.69519355,128.9,128.88,19.36656491]
[1768902600537,2.32684716,128.91,128.88,19.36656491]
[1768902600754,3.69519355,128.91,128.88,19.36656491]
[1768902601038,2.32684716,128.88,128.85,61.7]
[1768902601210,3.69519355,128.88,128.85,0.2]
[1768902601410,6.02204071,128.88,128.85,0.2]
[1768902602034,6.02204071,128.87,128.85,0.2]
[1768902602941,11.42245597,128.87,128.85,0.2]
[1768902603446,11.42245597,128.87,128.81,80.90787448]
[1768902603447,2.32684716,128.85,128.81,2.38656491]
[1768902603656,9.09560881,128.84,128.81,2.38656491]
[1768902603813,9.09560881,128.85,128.81,2.38656491]
[1768902604327,9.09560881,128.85,128.82,2.38656491]
[1768902605037,7.7591558,128.88,128.83,2.38656491]
[1768902605343,9.09560881,128.86,128.83,2.38656491]
[1768902606020,0.72952557,128.88,128.83,2.38656491]
[1768902606221,7.75817474,128.9,128.84,2.38656491]
[1768902606537,9.09560881,128.9,128.85,2.38656491]
[1768902606843,9.09560881,128.9,128.86,2.38656491]
[1768902607226,9.09560881,128.9,128.87,2.38656491]
[1768902607641,0.7183679,128.92,128.87,2.38656491]
[1768902607642,9.09560881,128.91,128.87,2.38656491]
[1768902607815,9.81397671,128.92,128.88,2.38656491]
[1768902608016,9.09560881,128.94,128.9,2.38656491]
[1768902609035,8.46187935,128.96,128.9,2.38656491]
[1768902609240,9.09560881,128.94,128.9,2.38656491]
[1768902609742,9.68998163,128.93,128.89,2.38656491]
[1768902609915,0.59437282,128.92,128.87,2.38656491]
[1768902610441,9.09560881,128.91,128.87,2.38656491]
[1768902611830,9.09560881,128.91,128.85,2.38656491]
[1768902611831,9.09560881,128.88,128.85,2.38656491]
[1768902612142,9.49412716,128.88,128.84,2.38656491]
[1768902612326,9.09560881,128.87,128.84,2.38656491]
[1768902612722,0.30227505,128.9,128.85,2.38656491]
[1768902612923,9.09560881,128.89,128.86,2.38656491]
[1768902613540,9.09560881,128.9,128.86,2.38656491]
[1768902614645,9.09560881,128.89,128.86,2.38656491]
[1768902615956,9.09560881,128.9,128.86,2.38656491]
[1768902617244,17.30227505,128.91,128.86,2.38656491]
[1768902617556,26.09560881,128.91,128.87,2.38656491]
[1768902617739,7.75494377,128.95,128.89,2.38656491]
[1768902617941,11.31956223,128.94,128.89,9.09560881]
[1768902618370,11.31956223,128.94,128.89,16.85362123]
[1768902618660,9.09560881,128.93,128.89,7.75801242]
[1768902618826,11.22976406,128.93,128.88,16.85452687]
[1768902619031,11.22156595,128.93,128.88,16.84632876]
[1768902619731,11.13279919,128.92,128.87,16.84698444]
[1768902619935,11.13279919,128.91,128.86,10.14665271]
[1768902620136,11.13279919,128.91,128.87,2.38656491]
[1768902620858,2.04538849,128.91,128.87,2.38656491]
[1768902621051,11.13279919,128.91,128.87,2.38656491]
[1768902621546,9.0874107,128.9,128.87,2.38656491]
[1768902624857,9.0874107,128.9,128.85,9.33283876]
[1768902624858,9.0874107,128.89,128.85,9.33283876]
[1768902625043,9.0874107,128.89,128.86,9.33247836]
[1768902626734,9.0874107,128.89,128.86,1.57217113]
[1768902626948,17.0,128.91,128.87,1.57217113]
[1768902627149,9.0874107,128.9,128.87,1.57217113]
[1768902627366,10.48617492,128.88,128.84,7.76151145]
[1768902627663,9.0874107,128.87,128.84,9.33368258]
[1768902629545,1.17741645,128.89,128.85,1.57217113]
[1768902629744,17.0,128.91,128.86,1.57217113]
[1768902629963,9.0874107,128.9,128.86,1.57217113]
[1768902631764,9.0874107,128.88,128.85,1.57217113]
[1768902632155,24.75786689,128.91,128.85,1.57217113]
[1768902632156,1.03405615,128.9,128.85,1.57217113]
[1768902632347,9.0874107,128.89,128.85,1.57217113]
[1768902633363,10.05101929,128.89,128.85,1.57217113]
[1768902634061,9.0874107,128.88,128.85,1.57217113]
[1768902634257,9.0874107,128.87,128.83,9.33409837]
[1768902634569,9.0874107,128.85,128.82,7.76246422]
[1768902634755,17.0,128.87,128.82,1.57217113]
[1768902634756,9.0874107,128.84,128.82,1.57217113]
[1768902634954,9.02741071,128.84,128.82,1.57217113]
[1768902635772,9.0874107,128.85,128.82,1.57217113]
[1768902639748,9.02741071,128.85,128.82,1.57217113]
[1768902642665,9.0874107,128.85,128.83,1.57217113]
[1768902644370,0.11814532,128.87,128.83,1.57217113]
[1768902644678,9.20555602,128.86,128.83,1.57217113]
[1768902644864,3.82333398,128.86,128.83,1.57217113]
[1768902645058,7.75939483,128.88,128.83,1.57217113]
[1768902645264,3.70518866,128.88,128.84,0.91998102]
[1768902645470,20.82333398,128.89,128.85,0.91998102]
[1768902647264,3.70518866,128.88,128.85,0.91998102]
[1768902649082,3.82333398,128.89,128.85,0.91998102]
[1768902650081,3.70518866,128.88,128.85,0.91998102]
[1768902651382,0.11814532,128.89,128.85,0.91998102]
[1768902651877,3.82333398,128.89,128.85,0.91998102]
[1768902653361,3.70518866,128.89,128.85,0.91998102]
[1768902653766,20.70518866,128.9,128.86,0.64699759]
[1768902653974,3.70518866,128.87,128.84,0.64699759]
[1768902656287,3.70518866,128.85,128.82,0.64699759]
[1768902656476,3.70518866,128.83,128.79,0.64699759]
[1768902657161,17.0,128.84,128.79,0.64699759]
[1768902657162,20.70518866,128.84,128.79,0.64699759]
[1768902657571,20.70518866,128.84,128.81,0.64699759]
[1768902657785,3.70518866,128.83,128.8,0.64699759]
[1768902658383,3.70518866,128.82,128.79,0.64699759]
[1768902659187,3.70518866,128.81,128.79,0.64699759]
[1768902659868,24.76194197,128.84,128.79,0.64699759]
[1768902660069,3.70518866,128.81,128.79,0.64699759]
[1768902660294,20.70518866,128.83,128.79,0.64699759]
[1768902660479,17.0,128.83,128.79,0.64699759]
[1768902660791,3.70518866,128.82,128.79,0.64699759]
[1768902661389,3.70518866,128.81,128.79,0.64699759]
[1768902661791,3.70518866,128.82,128.79,0.64699759]
[1768902662090,6.52590421,128.89,128.79,0.64699759]
[1768902662091,10.57733319,128.92,128.82,0.64699759]
[1768902662393,7.75661764,128.92,128.87,0.64699759]
[1768902662581,7.75614674,128.93,128.85,3.70518866]
[1768902662776,7.75614674,128.93,128.81,5.9565132]
[1768902662777,3.70518866,128.93,128.89,0.64699759]
[1768902663087,9.08677932,128.92,128.87,0.64699759]
[1768902663277,9.08677932,128.9,128.87,0.64699759]
[1768902663478,9.08677932,128.91,128.87,0.64699759]
[1768902664571,26.08677932,128.92,128.88,0.64699759]
[1768902665519,10.57388538,128.99,128.91,0.64699759]
[1768902665789,9.08677932,128.97,128.92,9.08677932]
[1768902666177,9.08677932,128.96,128.91,9.08677932]
[1768902666485,9.08677932,128.96,128.91,7.75710853]
[1768902666692,9.08677932,128.95,128.9,7.7576686]
[1768902666894,9.08677932,128.94,128.9,7.7576686]
[1768902667269,9.08677932,128.95,128.9,7.7576686]
[1768902667670,9.08677932,128.95,128.91,0.64699759]
[1768902671179,9.08677932,128.96,128.91,0.64699759]
[1768902671374,19.38039332,129.0,128.93,0.64699759]
[1768902671698,9.08677932,128.98,128.94,0.64699759]
[1768902671900,9.08677932,128.97,128.92,9.08677932]
[1768902672082,9.08677932,128.96,128.93,0.64699759]
[1768902672775,17.0,128.99,128.91,0.64699759]
[1768902672776,9.08677932,128.95,128.91,0.64699759]
[1768902673084,9.08677932,128.95,128.92,0.64699759]
[1768902678803,9.08677932,128.95,128.9,8.40473506]
[1768902679404,7.75438087,128.96,128.91,0.64699759]
[1768902679605,9.08677932,128.94,128.91,0.64699759]
[1768902679804,26.08677932,128.95,128.91,0.64699759]
[1768902680106,9.08677932,128.95,128.91,0.64699759]
[1768902680486,9.08677932,128.94,128.91,0.64699759]
[1768902680884,9.08554916,128.94,128.91,0.64699759]
[1768902681094,9.08554916,128.92,128.88,0.64699759]
[1768902681294,9.08554916,128.91,128.88,0.64699759]
[1768902681606,9.08554916,128.92,128.88,0.64699759]
[1768902683112,3.7018808,128.92,128.88,8.40615185]
[1768902684398,3.7018808,128.91,128.88,0.64699759]
[1768902684708,3.7018808,128.92,128.88,0.64699759]
[1768902684887,3.7018808,128.91,128.88,0.64699759]
[1768902685405,3.7018808,128.89,128.86,0.49289102]
[1768902685627,3.64188081,128.89,128.86,0.49289102]
[1768902685999,3.7018808,128.88,128.86,0.49289102]
[1768902687311,3.7018808,128.88,128.85,0.49289102]
[1768902688593,3.7018808,128.87,128.85,0.49289102]
[1768902691315,7.75797686,128.9,128.85,0.49289102]
[1768902691515,3.7018808,128.87,128.85,0.49289102]
[1768902692292,3.7018808,128.88,128.85,0.49289102]
[1768902697617,17.0,128.89,128.86,0.49289102]
[1768902699522,102.1,128.93,128.88,0.49289102]
[1768902699709,3.7018808,128.92,128.88,0.49289102]
[1768902700617,3.7018808,128.89,128.84,0.49289102]
[1768902700828,3.7018808,128.88,128.84,0.49289102]
[1768902701021,17.0,128.9,128.84,0.49289102]
[1768902701198,3.7018808,128.88,128.84,0.49289102]
[1768902701506,3.7018808,128.88,128.85,0.49289102]
[1768902702725,3.7018808,128.87,128.84,0.49289102]
[1768902702924,7.75857632,128.89,128.84,0.49289102]
[1768902702925,3.7018808,128.86,128.84,0.49289102]
[1768902703635,7.75857632,128.89,128.84,0.49289102]
[1768902703804,3.7018808,128.87,128.84,0.49289102]
[1768902704632,3.7018808,128.86,128.83,0.49571389]
[1768902704806,3.64188081,128.86,128.83,0.49571389]
[1768902706807,3.7018808,128.85,128.83,0.49571389]
[1768902707131,24.75977087,128.87,128.83,0.49571389]
[1768902707421,3.7018808,128.86,128.83,0.49571389]
[1768902710828,3.7018808,128.85,128.83,0.49571389]
[1768902711030,3.64188081,128.85,128.83,0.49571389]
[1768902712035,24.75984807,128.87,128.83,0.49571389]
[1768902712216,3.7018808,128.85,128.83,0.49571389]
[1768902713235,24.75984807,128.87,128.83,0.49571389]
[1768902713412,3.7018808,128.85,128.83,0.49571389]
[1768902713831,3.7018808,128.86,128.83,0.49571389]
[1768902719716,3.7018808,128.85,128.83,0.49571389]
[1768902719917,24.75977085,128.87,128.81,0.47372679]
[1768902720112,3.7018808,128.85,128.82,0.47372679]
[1768902721317,3.7018808,128.88,128.83,0.47372679]
[1768902721652,122.8018808,128.9,128.85,0.47372679]
[1768902722449,3.7018808,128.9,128.85,0.47372679]
[1768902722739,20.7018808,128.92,128.87,0.47372679]
[1768902722941,3.7018808,128.91,128.87,0.47372679]
[1768902723122,3.7018808,128.91,128.86,0.47372679]
[1768902723443,3.7018808,128.91,128.87,0.47372679]
[1768902723941,3.7018808,128.9,128.87,0.47372679]
[1768902726848,3.7018808,128.91,128.87,0.47372679]
[1768902729640,7.75643712,128.93,128.87,0.47372679]
[1768902729846,20.7018808,128.93,128.88,0.47372679]
[1768902730147,3.7018808,128.92,128.88,0.47372679]
[1768902732045,3.7018808,128.92,128.88,7.7590741]
[1768902732227,3.7018808,128.92,128.89,0.47372679]
[1768902733149,3.7018808,128.94,128.9,0.47372679]
[1768902733453,3.7018808,128.95,128.9,0.47372679]
[1768902734134,3.7018808,128.94,128.9,0.47372679]
[1768902735247,3.7018808,128.94,128.91,0.47372679]
[1768902735946,3.7018808,128.92,128.9,0.47372679]
[1768902736241,3.7018808,128.93,128.9,0.47372679]
[1768902737045,3.7018808,128.91,128.88,0.47372679]
[1768902738943,3.7018808,128.93,128.89,0.47372679]
[1768902739121,17.0,128.93,128.89,0.47372679]
[1768902740449,17.0,128.93,128.9,0.47372679]
[1768902742329,3.70058235,128.96,128.91,0.47372679]
[1768902742824,3.70058235,128.95,128.91,0.47372679]
[1768902744251,3.70058235,128.96,128.92,0.47258158]
[1768902744433,3.70058235,128.97,128.93,0.47258158]
[1768902744751,3.70058235,128.96,128.93,0.47258158]
[1768902746749,7.752538,129.0,128.94,0.47258158]
[1768902746939,3.70058235,128.98,128.94,0.47258158]
[1768902751556,3.70058235,128.95,128.92,0.47258158]
[1768902753458,3.70058235,128.94,128.92,0.47258158]
[1768902753828,3.70058235,128.93,128.92,0.47258158]
[1768902755058,3.70058235,128.94,128.92,0.47258158]
[1768902755253,7.75452234,128.96,128.92,0.47258158]
[1768902755560,3.70058235,128.94,128.92,0.47258158]
[1768902758853,38.76085376,129.0,128.92,0.47258158]
[1768902758854,19.38094181,129.0,128.92,0.47258158]
[1768902759057,3.70058235,128.96,128.92,0.47258158]
[1768902759241,16.98,128.97,128.92,0.47258158]
[1768902759439,20.68058235,128.97,128.92,0.47258158]
[1768902760468,20.68058235,128.97,128.93,0.47258158]
[1768902762566,3.70058235,128.96,128.93,0.47258158]
[1768902765466,16.98,128.97,128.93,0.47258158]
[1768902765666,3.70058235,128.96,128.93,0.47258158]
[1768902767964,16.98,128.97,128.93,8.22852278]
[1768902768168,16.98,128.97,128.94,0.45842495]
[1768902768371,3.70058235,128.97,128.94,0.45842495]
[1768902769169,3.70058235,128.98,128.95,0.45842495]
[1768902769347,3.70058235,129.0,128.95,0.45842495]
[1768902770363,3.70058235,128.99,128.95,0.45842495]
[1768902770554,20.68058235,129.0,128.96,0.45842495]
[1768902772244,3.70058235,128.99,128.96,0.45842495]
[1768902774665,16.98,129.0,128.96,0.45842495]
[1768902775054,3.70058235,128.99,128.96,0.45842495]
[1768902777774,3.70058235,128.98,128.96,0.45842495]
[1768902778074,20.68058235,128.97,128.93,0.47147983]
[1768902778369,16.98,128.97,128.93,0.47147983]
[1768902778550,3.70058235,128.94,128.9,0.47147983]
[1768902778750,3.70058235,128.92,128.9,0.47147983]
[1768902786579,20.68058235,128.91,128.87,0.47147983]
[1768902786780,24.73445923,128.96,128.9,0.47147983]
[1768902786958,24.73445923,128.96,128.89,3.70058235]
[1768902787160,3.70058235,128.95,128.9,3.70058235]
[1768902789078,3.70058235,128.95,128.91,0.47147983]
[1768902789390,27.13178294,129.0,128.93,0.47147983]
[1768902789689,3.70058235,128.96,128.93,0.44147983]
[1768902790977,7.75314002,128.98,128.93,0.44147983]
[1768902791173,3.70058235,128.96,128.93,0.44147983]
[1768902791483,7.75314002,128.98,128.93,0.44147983]
[1768902791684,3.70058235,128.97,128.93,0.44147983]
[1768902792785,3.70058235,128.96,128.93,0.44147983]
[1768902792972,3.70058235,128.95,128.93,0.44147983]
[1768902793774,3.70058235,128.96,128.93,0.44147983]
[1768902794982,16.98,128.97,128.93,0.44147983]
[1768902795183,3.70058235,128.94,128.91,0.47147983]
[1768902795788,7.4011647,128.92,128.82,0.47147983]
[1768902796089,3.70058235,128.85,128.82,0.47147983]
[1768902796389,3.70058235,128.84,128.82,0.47147983]
[1768902797876,19.39684206,128.89,128.82,0.47147983]
[1768902797877,14.9318856,128.93,128.83,0.47147983]
[1768902798074,3.70058235,128.89,128.84,0.47147983]
[1768902798771,3.70058235,128.88,128.84,0.47147983]
[1768902799586,3.70058235,128.86,128.84,0.47147983]
[1768902800394,17.0,128.88,128.84,0.47147983]
[1768902800578,3.70058235,128.86,128.84,0.47147983]
[1768902801095,3.70495001,128.87,128.84,0.47147983]
[1768902802473,3.70495001,128.85,128.82,0.47147983]
[1768902802685,3.70495001,128.84,128.82,0.47147983]
[1768902802899,3.64495002,128.84,128.82,0.47147983]
[1768902805336,3.70495001,128.84,128.82,0.47147983]
[1768902806304,7.76052435,128.86,128.82,0.47147983]
[1768902806476,3.70495001,128.83,128.79,7.76431396]
[1768902806680,0.23361721,128.85,128.79,7.76431396]
[1768902806901,3.70495001,128.83,128.79,7.76431396]
[1768902807198,3.64495002,128.83,128.79,7.76431396]
[1768902807797,3.58495003,128.83,128.79,7.76431396]
[1768902808300,3.70495001,128.84,128.79,7.76431396]
[1768902808508,0.23361721,128.86,128.8,0.49545597]
[1768902808681,3.70495001,128.84,128.8,0.49545597]
[1768902809289,0.23361721,128.86,128.81,0.49545597]
[1768902809598,24.99352315,128.87,128.81,0.49545597]
[1768902809809,3.70495001,128.85,128.81,0.49545597]
[1768902811608,3.70495001,128.84,128.82,0.49545597]
[1768902813803,24.75990594,128.87,128.81,0.49545597]
[1768902813804,3.70495001,128.83,128.81,0.49545597]
[1768902814109,3.70495001,128.82,128.79,0.49545597]
[1768902814281,3.70495001,128.81,128.79,0.49545597]
[1768902814803,3.70495001,128.81,128.77,7.76545527]
[1768902815311,3.70495001,128.82,128.77,7.76545527]
[1768902815483,3.70495001,128.8,128.76,7.76625646]
[1768902815691,3.64495002,128.79,128.76,7.76625646]
[1768902815889,3.70495001,128.79,128.76,7.76625646]
[1768902816294,0.48828311,128.8,128.76,7.76625646]
[1768902816509,3.70495001,128.79,128.76,7.76625646]
[1768902816808,3.70495001,128.79,128.76,8.26171243]
[1768902818101,3.70495001,128.78,128.76,0.49545597]
[1768902818406,3.64495002,128.78,128.76,0.49545597]
[1768902821428,3.70495001,128.78,128.76,0.49545597]
[1768902823215,0.48828311,128.76,128.74,0.2]
[1768902823399,3.70495001,128.76,128.74,0.2]
[1768902824318,3.70495001,128.75,128.74,0.2]
[1768902825119,3.70495001,128.75,128.73,0.69545597]
[1768902826113,3.70495001,128.75,128.71,0.2]
[1768902826114,0.49741406,128.73,128.71,0.2]
[1768902826314,3.70495001,128.72,128.71,0.2]
[1768902826612,0.43741407,128.73,128.71,0.2]
[1768902826829,3.70495001,128.72,128.7,0.2]
[1768902827123,44.17820641,128.78,128.69,0.66733876]
[1768902827124,3.70495001,128.71,128.69,0.66733876]
[1768902827298,3.70495001,128.72,128.69,0.66733876]
[1768902827635,3.70495001,128.71,128.69,0.66733876]
[1768902828715,0.49741406,128.75,128.7,0.46733876]
[1768902829028,4.20236407,128.77,128.73,0.46733876]
[1768902829511,3.70495001,128.76,128.73,0.46733876]
[1768902829909,0.49741406,128.77,128.73,8.2355024]
[1768902830105,4.20236407,128.77,128.73,8.2355024]
[1768902830706,4.20236407,128.77,128.73,0.46733876]
[1768902830903,3.70495001,128.76,128.73,0.46733876]
[1768902832227,0.49741406,128.77,128.73,0.46733876]
[1768902832525,4.20236407,128.74,128.7,0.46733876]
[1768902832713,3.70495001,128.74,128.71,0.46733876]
[1768902832913,4.20236407,128.75,128.71,0.46733876]
[1768902833222,3.70495001,128.75,128.71,0.46733876]
[1768902833414,0.49741406,128.76,128.71,0.46733876]
[1768902833721,0.48276642,128.78,128.73,0.48173662]
[1768902834234,4.18771643,128.78,128.74,0.48173662]
[1768902834702,0.48276642,128.79,128.74,4.18668663]
[1768902834904,0.48276642,128.8,128.75,0.48173662]
[1768902835208,17.02,128.81,128.72,27.19064846]
[1768902835209,0.48276642,128.81,128.76,0.48173662]
[1768902835415,3.70495001,128.8,128.76,0.48173662]
[1768902835628,0.48276642,128.81,128.76,0.48173662]
[1768902835814,4.18771643,128.81,128.77,0.48173662]
[1768902837231,0.48276642,128.83,128.78,0.48173662]
[1768902837430,3.70495001,128.84,128.79,4.18668663]
[1768902837611,3.70495001,128.84,128.8,0.48173662]
[1768902838130,4.18771643,128.84,128.8,0.48173662]
[1768902838432,3.70495001,128.82,128.79,0.48173662]
[1768902839632,0.48276642,128.83,128.77,0.48173662]
[1768902839633,4.18771643,128.81,128.77,0.48173662]
[1768902839816,3.70495001,128.8,128.77,0.48173662]